fUST/lending_fUST_20250220
["ID","MTS","AMOUNT","RATE_DAILY","PERIOD"]
[353738770,1740001851102,-369.18388959,0.00014742,2]
[353738771,1740001851111,-1044.969,0.0001475,2]
[353738772,1740001851122,-168.169,0.0001475,2]
[353738773,1740001851131,-500.0,0.00014767,2]
[353738774,1740001851141,-500.0,0.00014767,2]
[353738775,1740001851150,-765.72,0.00014767,2]
[353738776,1740001851160,-500.0,0.00014767,2]
[353738777,1740001851170,-500.0,0.00014767,2]
[353738778,1740001851180,-549.37,0.00014767,2]
[353738779,1740001851190,-242.4,0.00014767,2]
[353738780,1740001851299,-500.0,0.00014767,2]
[353738781,1740001851323,-609.21,0.00014767,2]
[353738782,1740001851334,-574.21,0.00014767,2]
[353738783,1740001851350,-4467.89,0.00014767,2]
[353738784,1740001851360,-500.0,0.00014767,2]
[353738785,1740001851370,-811.0,0.00014767,2]
[353738786,1740001851381,-1386.06,0.00014767,2]
[353738787,1740001851390,-500.0,0.00014767,2]
[353738788,1740001851400,-1029.05,0.00014767,2]
[353738789,1740001851409,-640.29,0.00014767,2]
[353738790,1740001851421,-500.0,0.00014767,2]
[353738791,1740001851432,-500.0,0.00014767,2]
[353738792,1740001851442,-938.65,0.00014767,2]
[353738793,1740001851452,-568.72,0.00014767,2]
[353738794,1740001851462,-553.57,0.00014767,2]
[353738795,1740001851473,-550.04,0.00014767,2]
[353738796,1740001851483,-500.0,0.00014767,2]
[353738797,1740001851493,-522.0,0.00014767,2]
[353738798,1740001851503,-1421.72,0.00014767,2]
[353738799,1740001851512,-1040.02,0.00014767,2]
[353738800,1740001851522,-2658.35,0.00014767,2]
[353738801,1740001851532,-6465.72,0.00014767,2]
[353738802,1740001851542,-1289.78,0.00014767,2]
[353738803,1740001851551,-459.85486826,0.00014767,2]
[353738804,1740001851561,-1000.50517202,0.00014795,2]
[353738805,1740001851571,-151.0,0.000148,2]
[353738806,1740001851581,-151.0,0.000148,2]
[353738807,1740001851591,-1120.28347369,0.00014813,2]
[353738808,1740001851601,-399.54,0.00014849,2]
[353738809,1740001851611,-765.72,0.00014849,2]
[353738810,1740001851621,-500.0,0.00014849,2]
[353738811,1740001851631,-500.0,0.00014849,2]
[353738812,1740001851641,-549.37,0.00014849,2]
[353738813,1740001851651,-500.0,0.00014849,2]
[353738814,1740001851661,-609.21,0.00014849,2]
[353738815,1740001851671,-574.21,0.00014849,2]
[353738816,1740001851680,-4467.89,0.00014849,2]
[353738817,1740001851690,-500.0,0.00014849,2]
[353738818,1740001851700,-811.0,0.00014849,2]
[353738819,1740001851713,-1386.06,0.00014849,2]
[353738820,1740001851723,-500.0,0.00014849,2]
[353738821,1740001851733,-1029.05,0.00014849,2]
[353738822,1740001851743,-640.29,0.00014849,2]
[353738823,1740001851754,-500.0,0.00014849,2]
[353738824,1740001851765,-500.0,0.00014849,2]
[353738825,1740001851775,-938.65,0.00014849,2]
[353738826,1740001851785,-568.72,0.00014849,2]
[353738827,1740001851795,-553.57,0.00014849,2]
[353738828,1740001851805,-550.04,0.00014849,2]
[353738829,1740001851815,-500.0,0.00014849,2]
[353738830,1740001851825,-522.0,0.00014849,2]
[353738831,1740001851834,-1421.72,0.00014849,2]
[353738832,1740001851844,-1040.02,0.00014849,2]
[353738833,1740001851855,-2658.35,0.00014849,2]
[353738834,1740001851865,-6465.72,0.00014849,2]
[353738835,1740001851875,-1289.78,0.00014849,2]
[353738836,1740001851885,-500.0,0.00014873,2]
[353738837,1740001851895,-500.0,0.00014873,2]
[353738838,1740001851905,-184.97113629,0.00014873,2]
[353738839,1740001851914,-500.0,0.00014873,2]
[353738840,1740001851924,-331.98758965,0.00014873,2]
[353738841,1740001851934,-500.0,0.00014873,2]
[353738842,1740001851943,-500.0,0.00014873,2]
[353738843,1740001851953,-500.0,0.00014873,2]
[353738844,1740001851962,-666440.116538,0.000149,2]
[353738845,1740001851972,-765.72,0.00014931,2]
[353738846,1740001851982,-500.0,0.00014931,2]
[353738847,1740001851992,-500.0,0.00014931,2]
[353738848,1740001852003,-549.37,0.00014931,2]
[353738849,1740001852013,-500.0,0.00014931,2]
[353738850,1740001852022,-609.21,0.00014931,2]
[353738851,1740001852032,-574.21,0.00014931,2]
[353738852,1740001852046,-4467.89,0.00014931,2]
[353738853,1740001852056,-500.0,0.00014931,2]
[353738854,1740001852066,-811.0,0.00014931,2]
[353738855,1740001852075,-1386.06,0.00014931,2]
[353738856,1740001852085,-500.0,0.00014931,2]
[353738857,1740001852094,-1029.05,0.00014931,2]
[353738858,1740001852104,-640.29,0.00014931,2]
[353738859,1740001852115,-500.0,0.00014931,2]
[353738860,1740001852125,-500.0,0.00014931,2]
[353738861,1740001852134,-938.65,0.00014931,2]
[353738862,1740001852144,-568.72,0.00014931,2]
[353738863,1740001852154,-553.57,0.00014931,2]
[353738864,1740001852164,-550.04,0.00014931,2]
[353738865,1740001852173,-500.0,0.00014931,2]
[353738866,1740001852183,-522.0,0.00014931,2]
[353738867,1740001852192,-1421.72,0.00014931,2]
[353738868,1740001852202,-1040.02,0.00014931,2]
[353738869,1740001852212,-2658.35,0.00014931,2]
[353738870,1740001852221,-6465.72,0.00014931,2]
[353738871,1740001852231,-1289.78,0.00014931,2]
[353738872,1740001852240,-765.72,0.00015013,2]
[353738873,1740001852251,-500.0,0.00015013,2]
[353738874,1740001852260,-500.0,0.00015013,2]
[353738875,1740001852270,-549.37,0.00015013,2]
[353738876,1740001852280,-500.0,0.00015013,2]
[353738877,1740001852290,-609.21,0.00015013,2]
[353738878,1740001852299,-574.21,0.00015013,2]
[353738879,1740001852309,-4467.89,0.00015013,2]
[353738880,1740001852317,-500.0,0.00015013,2]
[353738881,1740001852327,-811.0,0.00015013,2]
[353738882,1740001852337,-1386.06,0.00015013,2]
[353738883,1740001852347,-500.0,0.00015013,2]
[353738884,1740001852356,-1029.05,0.00015013,2]
[353738885,1740001852366,-640.29,0.00015013,2]
[353738886,1740001852376,-500.0,0.00015013,2]
[353738887,1740001852385,-500.0,0.00015013,2]
[353738888,1740001852394,-938.65,0.00015013,2]
[353738889,1740001852405,-568.72,0.00015013,2]
[353738890,1740001852414,-553.57,0.00015013,2]
[353738891,1740001852423,-550.04,0.00015013,2]
[353738892,1740001852433,-500.0,0.00015013,2]
[353738893,1740001852442,-522.0,0.00015013,2]
[353738894,1740001852452,-1421.72,0.00015013,2]
[353738895,1740001852460,-1040.02,0.00015013,2]
[353738896,1740001852470,-2658.35,0.00015013,2]
[353738897,1740001852481,-6465.72,0.00015013,2]
[353738898,1740001852491,-1289.78,0.00015013,2]
[353738899,1740001852501,-765.72,0.00015095,2]
[353738900,1740001852511,-500.0,0.00015095,2]
[353738901,1740001852521,-500.0,0.00015095,2]
[353738902,1740001852531,-549.37,0.00015095,2]
[353738903,1740001852542,-500.0,0.00015095,2]
[353738904,1740001852552,-609.21,0.00015095,2]
[353738905,1740001852562,-574.21,0.00015095,2]
[353738906,1740001852572,-4467.89,0.00015095,2]
[353738907,1740001852582,-500.0,0.00015095,2]
[353738908,1740001852592,-811.0,0.00015095,2]
[353738909,1740001852604,-1386.06,0.00015095,2]
[353738910,1740001852614,-500.0,0.00015095,2]
[353738911,1740001852625,-1029.05,0.00015095,2]
[353738912,1740001852637,-640.29,0.00015095,2]
[353738913,1740001852647,-500.0,0.00015095,2]
[353738914,1740001852657,-500.0,0.00015095,2]
[353738915,1740001852666,-938.65,0.00015095,2]
[353738916,1740001852676,-568.72,0.00015095,2]
[353738917,1740001852685,-553.57,0.00015095,2]
[353738918,1740001852694,-550.04,0.00015095,2]
[353738919,1740001852705,-500.0,0.00015095,2]
[353738920,1740001852715,-522.0,0.00015095,2]
[353738921,1740001852725,-1421.72,0.00015095,2]
[353738922,1740001852735,-1040.02,0.00015095,2]
[353738923,1740001852744,-2658.35,0.00015095,2]
[353738924,1740001852755,-6465.72,0.00015095,2]
[353738925,1740001852764,-1289.78,0.00015095,2]
[353738926,1740001852774,-765.72,0.00015178,2]
[353738927,1740001852784,-500.0,0.00015178,2]
[353738928,1740001852793,-500.0,0.00015178,2]
[353738929,1740001852804,-549.37,0.00015178,2]
[353738930,1740001852814,-500.0,0.00015178,2]
[353738931,1740001852823,-609.21,0.00015178,2]
[353738932,1740001852833,-574.21,0.00015178,2]
[353738933,1740001852843,-4467.89,0.00015178,2]
[353738934,1740001852854,-290.05,0.00015178,2]
[353738935,1740001852864,-811.0,0.00015178,2]
[353738936,1740001852874,-1386.06,0.00015178,2]
[353738937,1740001852884,-500.0,0.00015178,2]
[353738938,1740001852893,-1029.05,0.00015178,2]
[353738939,1740001852904,-640.29,0.00015178,2]
[353738940,1740001852914,-500.0,0.00015178,2]
[353738941,1740001852923,-500.0,0.00015178,2]
[353738942,1740001852933,-938.65,0.00015178,2]
[353738943,1740001852943,-568.72,0.00015178,2]
[353738944,1740001852953,-553.57,0.00015178,2]
[353738945,1740001852962,-550.04,0.00015178,2]
[353738946,1740001852972,-500.0,0.00015178,2]
[353738947,1740001852984,-522.0,0.00015178,2]
[353738948,1740001852997,-1421.72,0.00015178,2]
[353738949,1740001853006,-1040.02,0.00015178,2]
[353738950,1740001853015,-2658.35,0.00015178,2]
[353738951,1740001853024,-6465.72,0.00015178,2]
[353738952,1740001853033,-1289.78,0.00015178,2]
[353738953,1740001853044,-765.72,0.0001526,2]
[353738954,1740001853053,-500.0,0.0001526,2]
[353738955,1740001853063,-500.0,0.0001526,2]
[353738956,1740001853072,-549.37,0.0001526,2]
[353738957,1740001853082,-500.0,0.0001526,2]
[353738958,1740001853091,-609.21,0.0001526,2]
[353738959,1740001853101,-574.21,0.0001526,2]
[353738960,1740001853110,-4467.89,0.0001526,2]
[353738961,1740001853121,-811.0,0.0001526,2]
[353738962,1740001853131,-1386.06,0.0001526,2]
[353738963,1740001853139,-500.0,0.0001526,2]
[353738964,1740001853149,-1029.05,0.0001526,2]
[353738965,1740001853159,-640.29,0.0001526,2]
[353738966,1740001853168,-160.10055816,0.0001526,2]
[353738967,1740001853178,-500.0,0.0001526,2]
[353738968,1740001853187,-938.65,0.0001526,2]
[353738969,1740001853198,-568.72,0.0001526,2]
[353738970,1740001853208,-553.57,0.0001526,2]
[353738971,1740001853218,-550.04,0.0001526,2]
[353738972,1740001853228,-500.0,0.0001526,2]
[353738973,1740001853237,-522.0,0.0001526,2]
[353738974,1740001853247,-1421.72,0.0001526,2]
[353738975,1740001853256,-1040.02,0.0001526,2]
[353738976,1740001853266,-2658.35,0.0001526,2]
[353738977,1740001853275,-6465.72,0.0001526,2]
[353738978,1740001853285,-1289.78,0.0001526,2]
[353738979,1740001853295,-587.0,0.00015273,2]
[353738980,1740001853305,-765.72,0.00015342,2]
[353738981,1740001853314,-500.0,0.00015342,2]
[353738982,1740001853324,-486.61188345,0.00015342,2]
[353738983,1740001853334,-549.37,0.00015342,2]
[353738984,1740001853343,-500.0,0.00015342,2]
[353738985,1740001853353,-609.21,0.00015342,2]
[353738986,1740001853362,-574.21,0.00015342,2]
[353738987,1740001853372,-4467.89,0.00015342,2]
[353738988,1740001853382,-811.0,0.00015342,2]
[353738989,1740001853391,-1386.06,0.00015342,2]
[353738990,1740001853401,-500.0,0.00015342,2]
[353738991,1740001853411,-1029.05,0.00015342,2]
[353738992,1740001853421,-640.29,0.00015342,2]
[353738993,1740001853431,-500.0,0.00015342,2]
[353738994,1740001853440,-938.65,0.00015342,2]
[353738995,1740001853451,-568.72,0.00015342,2]
[353738996,1740001853460,-553.57,0.00015342,2]
[353738997,1740001853469,-550.04,0.00015342,2]
[353738998,1740001853479,-500.0,0.00015342,2]
[353738999,1740001853488,-522.0,0.00015342,2]
[353739000,1740001853497,-1421.72,0.00015342,2]
[353739001,1740001853507,-1040.02,0.00015342,2]
[353739002,1740001853517,-2658.35,0.00015342,2]
[353739003,1740001853527,-6465.72,0.00015342,2]
[353739004,1740001853537,-1289.78,0.00015342,2]
[353739005,1740001853546,-1000.0,0.00015421,2]
[353739006,1740001853556,-500.0,0.00015421,2]
[353739007,1740001853566,-500.0,0.00015421,2]
[353739008,1740001853576,-500.0,0.00015421,2]
[353739009,1740001853586,-765.72,0.00015424,2]
[353739010,1740001853595,-500.0,0.00015424,2]
[353739011,1740001853606,-549.37,0.00015424,2]
[353739012,1740001853616,-500.0,0.00015424,2]
[353739013,1740001853626,-609.21,0.00015424,2]
[353739014,1740001853635,-574.21,0.00015424,2]
[353739015,1740001853645,-4467.89,0.00015424,2]
[353739016,1740001853654,-811.0,0.00015424,2]
[353739017,1740001853664,-1386.06,0.00015424,2]
[353739018,1740001853674,-280.36100684,0.00015424,2]
[353739019,1740001853684,-1029.05,0.00015424,2]
[353739020,1740001853694,-640.29,0.00015424,2]
[353739021,1740001853704,-500.0,0.00015424,2]
[353739022,1740001853714,-938.65,0.00015424,2]
[353739023,1740001853724,-568.72,0.00015424,2]
[353739024,1740001853734,-553.57,0.00015424,2]
[353739025,1740001853744,-550.04,0.00015424,2]
[353739026,1740001853754,-500.0,0.00015424,2]
[353739027,1740001853764,-522.0,0.00015424,2]
[353739028,1740001853774,-1421.72,0.00015424,2]
[353739029,1740001853784,-1040.02,0.00015424,2]
[353739030,1740001853794,-2658.35,0.00015424,2]
[353739031,1740001853804,-6465.72,0.00015424,2]
[353739032,1740001853814,-1289.78,0.00015424,2]
[353739033,1740001853824,-765.72,0.00015506,2]
[353739034,1740001853834,-188.45716264,0.00015506,2]
[353739035,1740001853843,-549.37,0.00015506,2]
[353739036,1740001853853,-407.7371738,0.00015506,2]
[353739037,1740001853863,-609.21,0.00015506,2]
[353739038,1740001853872,-574.21,0.00015506,2]
[353739039,1740001853990,-4467.89,0.00015506,2]
[353739040,1740001854000,-811.0,0.00015506,2]
[353739041,1740001854011,-1386.06,0.00015506,2]
[353739042,1740001854021,-1029.05,0.00015506,2]
[353739043,1740001854031,-640.29,0.00015506,2]
[353739044,1740001854043,-240.62641406,0.00015506,2]
[353739045,1740001854053,-938.65,0.00015506,2]
[353739046,1740001854062,-568.72,0.00015506,2]
[353739047,1740001854072,-553.57,0.00015506,2]
[353739048,1740001854082,-550.04,0.00015506,2]
[353739049,1740001854092,-500.0,0.00015506,2]
[353739050,1740001854102,-522.0,0.00015506,2]
[353739051,1740001854111,-1421.72,0.00015506,2]
[353739052,1740001854122,-1040.02,0.00015506,2]
[353739053,1740001854133,-2658.35,0.00015506,2]
[353739054,1740001854142,-6465.72,0.00015506,2]
[353739055,1740001854151,-1289.78,0.00015506,2]
[353739056,1740001854160,-600.0,0.00015534,2]
[353739057,1740001854170,-765.81,0.00015589,2]
[353739058,1740001854180,-549.59799085,0.00015589,2]
[353739059,1740001854191,-609.32663562,0.00015589,2]
[353739060,1740001854201,-574.38,0.00015589,2]
[353739061,1740001854211,-4467.97589072,0.00015589,2]
[353739062,1740001854221,-811.01947542,0.00015589,2]
[353739063,1740001854231,-1386.14070958,0.00015589,2]
[353739064,1740001854241,-1029.09048065,0.00015589,2]
[353739065,1740001854251,-640.49453366,0.00015589,2]
[353739066,1740001854261,-938.77110362,0.00015589,2]
[353739067,1740001854271,-568.87632677,0.00015589,2]
[353739068,1740001854281,-553.7,0.00015589,2]
[353739069,1740001854290,-550.24244067,0.00015589,2]
[353739070,1740001854300,-490.56,0.00015589,2]
[353739071,1740001854309,-522.12,0.00015589,2]
[353739072,1740001854319,-1421.93,0.00015589,2]
[353739073,1740001854329,-1040.04903006,0.00015589,2]
[353739074,1740001854339,-2658.38,0.00015589,2]
[353739075,1740001854349,-6465.95370293,0.00015589,2]
[353739076,1740001854359,-1289.84225558,0.00015589,2]
[353739077,1740001854369,-369.18388959,0.0001564,2]
[353739078,1740001854378,-160.0,0.0001605,3]
[353739079,1740001854388,-465.183571,0.00016054,2]
[353739080,1740001854398,-499.0,0.00016164,2]
[353739081,1740001854407,-485.53027397,0.00016173,2]
[353739082,1740001854417,-272.0,0.00016187,2]
[353739083,1740001854427,-234.0,0.00016187,2]
[353739084,1740001854436,-234.0,0.00016187,2]
[353739085,1740001854446,-234.0,0.00016187,2]
[353739086,1740001854455,-374.0,0.00016187,2]
[353739087,1740001854465,-374.0,0.00016187,2]
[353739088,1740001854474,-216.0,0.00016187,2]
[353739089,1740001854484,-216.0,0.00016187,2]
[353739090,1740001854494,-216.0,0.00016187,2]
[353739091,1740001854504,-216.0,0.00016187,2]
[353739092,1740001854513,-216.0,0.00016187,2]
[353739093,1740001854523,-216.0,0.00016187,2]
[353739094,1740001854533,-216.0,0.00016187,2]
[353739095,1740001854544,-216.0,0.00016187,2]
[353739096,1740001854554,-216.0,0.00016187,2]
[353739097,1740001854563,-216.0,0.00016187,2]
[353739098,1740001854573,-216.0,0.00016187,2]
[353739099,1740001854583,-216.0,0.00016187,2]
[353739100,1740001854593,-216.0,0.00016187,2]
[353739101,1740001854602,-216.0,0.00016187,2]
[353739102,1740001854611,-216.0,0.00016187,2]
[353739103,1740001854621,-216.0,0.00016187,2]
[353739104,1740001854630,-216.0,0.00016187,2]
[353739105,1740001854640,-216.0,0.00016187,2]
[353739106,1740001854650,-216.0,0.00016187,2]
[353739107,1740001854659,-216.0,0.00016187,2]
[353739108,1740001854669,-216.0,0.00016187,2]
[353739109,1740001854678,-216.0,0.00016187,2]
[353739110,1740001854688,-216.0,0.00016187,2]
[353739111,1740001854697,-216.0,0.00016187,2]
[353739112,1740001854707,-216.0,0.00016187,2]
[353739113,1740001854716,-216.0,0.00016187,2]
[353739114,1740001854726,-216.0,0.00016187,2]
[353739115,1740001854735,-216.0,0.00016187,2]
[353739116,1740001854745,-216.0,0.00016187,2]
[353739117,1740001854755,-216.0,0.00016187,2]
[353739118,1740001854764,-216.0,0.00016187,2]
[353739119,1740001854774,-216.0,0.00016187,2]
[353739120,1740001854783,-216.0,0.00016187,2]
[353739121,1740001854793,-216.0,0.00016187,2]
[353739122,1740001854803,-216.0,0.00016187,2]
[353739123,1740001854812,-216.0,0.00016187,2]
[353739124,1740001854822,-216.0,0.00016187,2]
[353739125,1740001854832,-216.0,0.00016187,2]
[353739126,1740001854841,-216.0,0.00016187,2]
[353739127,1740001854851,-216.0,0.00016187,2]
[353739128,1740001854861,-216.0,0.00016187,2]
[353739129,1740001854870,-216.0,0.00016187,2]
[353739130,1740001854881,-216.0,0.00016187,2]
[353739131,1740001854891,-216.0,0.00016187,2]
[353739132,1740001854900,-216.0,0.00016187,2]
[353739133,1740001854910,-216.0,0.00016187,2]
[353739134,1740001854919,-216.0,0.00016187,2]
[353739135,1740001854928,-216.0,0.00016187,2]
[353739136,1740001854938,-216.0,0.00016187,2]
[353739137,1740001854948,-216.0,0.00016187,2]
[353739138,1740001854957,-216.0,0.00016187,2]
[353739139,1740001854967,-216.0,0.00016187,2]
[353739140,1740001854976,-216.0,0.00016187,2]
[353739141,1740001854985,-216.0,0.00016187,2]
[353739142,1740001854995,-216.0,0.00016187,2]
[353739143,1740001855005,-216.0,0.00016187,2]
[353739144,1740001855015,-216.0,0.00016187,2]
[353739145,1740001855024,-216.0,0.00016187,2]
[353739146,1740001855036,-216.0,0.00016187,2]
[353739147,1740001855047,-216.0,0.00016187,2]
[353739148,1740001855056,-216.0,0.00016187,2]
[353739149,1740001855066,-216.0,0.00016187,2]
[353739150,1740001855075,-216.0,0.00016187,2]
[353739151,1740001855085,-216.0,0.00016187,2]
[353739152,1740001855093,-216.0,0.00016187,2]
[353739153,1740001855103,-216.0,0.00016187,2]
[353739154,1740001855113,-216.0,0.00016187,2]
[353739155,1740001855123,-216.0,0.00016187,2]
[353739156,1740001855133,-216.0,0.00016187,2]
[353739157,1740001855142,-216.0,0.00016187,2]
[353739158,1740001855151,-216.0,0.00016187,2]
[353739159,1740001855161,-216.0,0.00016187,2]
[353739160,1740001855170,-216.0,0.00016187,2]
[353739161,1740001855179,-216.0,0.00016187,2]
[353739162,1740001855188,-216.0,0.00016187,2]
[353739163,1740001855198,-216.0,0.00016187,2]
[353739164,1740001855208,-216.0,0.00016187,2]
[353739165,1740001855217,-216.0,0.00016187,2]
[353739166,1740001855226,-216.0,0.00016187,2]
[353739167,1740001855236,-216.0,0.00016187,2]
[353739168,1740001855245,-216.0,0.00016187,2]
[353739169,1740001855254,-216.0,0.00016187,2]
[353739170,1740001855264,-216.0,0.00016187,2]
[353739171,1740001855274,-216.0,0.00016187,2]
[353739172,1740001855283,-216.0,0.00016187,2]
[353739173,1740001855292,-216.0,0.00016187,2]
[353739174,1740001855301,-216.0,0.00016187,2]
[353739175,1740001855310,-216.0,0.00016187,2]
[353739176,1740001855320,-216.0,0.00016187,2]
[353739177,1740001855329,-216.0,0.00016187,2]
[353739178,1740001855338,-216.0,0.00016187,2]
[353739179,1740001855347,-216.0,0.00016187,2]
[353739180,1740001855356,-216.0,0.00016187,2]
[353739181,1740001855365,-216.0,0.00016187,2]
[353739182,1740001855375,-216.0,0.00016187,2]
[353739183,1740001855387,-216.0,0.00016187,2]
[353739184,1740001855396,-216.0,0.00016187,2]
[353739185,1740001855405,-268.0,0.00016187,2]
[353739186,1740001855415,-268.0,0.00016187,2]
[353739187,1740001855427,-268.0,0.00016187,2]
[353739188,1740001855436,-268.0,0.00016187,2]
[353739189,1740001855445,-268.0,0.00016187,2]
[353739190,1740001855454,-268.0,0.00016187,2]
[353739191,1740001855464,-268.0,0.00016187,2]
[353739192,1740001855474,-268.0,0.00016187,2]
[353739193,1740001855483,-268.0,0.00016187,2]
[353739194,1740001855493,-268.0,0.00016187,2]
[353739195,1740001855503,-268.0,0.00016187,2]
[353739196,1740001855512,-268.0,0.00016187,2]
[353739197,1740001855522,-268.0,0.00016187,2]
[353739198,1740001855532,-268.0,0.00016187,2]
[353739199,1740001855542,-268.0,0.00016187,2]
[353739200,1740001855552,-268.0,0.00016187,2]
[353739201,1740001855561,-268.0,0.00016187,2]
[353739202,1740001855570,-268.0,0.00016187,2]
[353739203,1740001855580,-268.0,0.00016187,2]
[353739204,1740001855589,-268.0,0.00016187,2]
[353739205,1740001855599,-268.0,0.00016187,2]
[353739206,1740001855617,-268.0,0.00016187,2]
[353739207,1740001855628,-268.0,0.00016187,2]
[353739208,1740001855638,-268.0,0.00016187,2]
[353739209,1740001855648,-268.0,0.00016187,2]
[353739210,1740001855657,-268.0,0.00016187,2]
[353739211,1740001855667,-268.0,0.00016187,2]
[353739212,1740001855677,-268.0,0.00016187,2]
[353739213,1740001855686,-268.0,0.00016187,2]
[353739214,1740001855696,-268.0,0.00016187,2]
[353739215,1740001855706,-268.0,0.00016187,2]
[353739216,1740001855715,-268.0,0.00016187,2]
[353739217,1740001855724,-268.0,0.00016187,2]
[353739218,1740001855734,-268.0,0.00016187,2]
[353739219,1740001855744,-268.0,0.00016187,2]
[353739220,1740001855754,-268.0,0.00016187,2]
[353739221,1740001855764,-268.0,0.00016187,2]
[353739222,1740001855774,-268.0,0.00016187,2]
[353739223,1740001855783,-268.0,0.00016187,2]
[353739224,1740001855793,-268.0,0.00016187,2]
[353739225,1740001855803,-268.0,0.00016187,2]
[353739226,1740001855812,-268.0,0.00016187,2]
[353739227,1740001855822,-268.0,0.00016187,2]
[353739228,1740001855832,-268.0,0.00016187,2]
[353739229,1740001855842,-268.0,0.00016187,2]
[353739230,1740001855853,-268.0,0.00016187,2]
[353739231,1740001855863,-268.0,0.00016187,2]
[353739232,1740001855873,-268.0,0.00016187,2]
[353739233,1740001855883,-268.0,0.00016187,2]
[353739234,1740001855892,-268.0,0.00016187,2]
[353739235,1740001855902,-268.0,0.00016187,2]
[353739236,1740001855911,-268.0,0.00016187,2]
[353739237,1740001855920,-268.0,0.00016187,2]
[353739238,1740001855930,-268.0,0.00016187,2]
[353739239,1740001855939,-268.0,0.00016187,2]
[353739240,1740001855949,-268.0,0.00016187,2]
[353739241,1740001855959,-268.0,0.00016187,2]
[353739242,1740001855969,-268.0,0.00016187,2]
[353739243,1740001855980,-268.0,0.00016187,2]
[353739244,1740001855990,-268.0,0.00016187,2]
[353739245,1740001856000,-268.0,0.00016187,2]
[353739246,1740001856010,-268.0,0.00016187,2]
[353739247,1740001856020,-268.0,0.00016187,2]
[353739248,1740001856030,-268.0,0.00016187,2]
[353739249,1740001856041,-268.0,0.00016187,2]
[353739250,1740001856050,-268.0,0.00016187,2]
[353739251,1740001856060,-268.0,0.00016187,2]
[353739252,1740001856069,-268.0,0.00016187,2]
[353739253,1740001856079,-268.0,0.00016187,2]
[353739254,1740001856088,-268.0,0.00016187,2]
[353739255,1740001856097,-268.0,0.00016187,2]
[353739256,1740001856107,-268.0,0.00016187,2]
[353739257,1740001856116,-268.0,0.00016187,2]
[353739258,1740001856126,-268.0,0.00016187,2]
[353739259,1740001856135,-268.0,0.00016187,2]
[353739260,1740001856145,-268.0,0.00016187,2]
[353739261,1740001856154,-268.0,0.00016187,2]
[353739262,1740001856163,-268.0,0.00016187,2]
[353739263,1740001856173,-268.0,0.00016187,2]
[353739264,1740001856183,-268.0,0.00016187,2]
[353739265,1740001856193,-268.0,0.00016187,2]
[353739266,1740001856203,-268.0,0.00016187,2]
[353739267,1740001856212,-268.0,0.00016187,2]
[353739268,1740001856223,-268.0,0.00016187,2]
[353739269,1740001856233,-268.0,0.00016187,2]